[Event "45th FIDE Olympiad 2024"]
[Site "Budapest"]
[Date "2024.09.18"]
[Round "7.6"]
[White "Leko, Peter"]
[Black "Pultinevicius, Paulius"]
[Result "1-0"]
[ECO "B30"]
[WhiteElo "2666"]
[BlackElo "2587"]
[Annotator "TA"]
[PlyCount "45"]
[EventDate "2024.09.05"]
[EventType "team-tourn"]
[EventCountry "HUN"]
[SourceTitle "playchess.com"]
[Source "ChessBase"]
[SourceQuality "1"]
[WhiteTeam "Hungary"]
[BlackTeam "Lithuania"]
[WhiteTeamCountry "HUN"]
[BlackTeamCountry "LTU"]
[TimeControl "40/5400+30:1800+30"]

{[%evp 9,45,7,15,1,0,0,0,0,62,44,51,50,80,62,70,49,52,48,145,137,147,139,143,122,184,198,201,188,183,187,188,176,482,460,488,498,517,508]} 1. e4 {[%emt 0:00:22]} c5 {[%emt 0:00:05]} 2. Nf3 {[%emt 0:00:15]} Nc6 {[%emt 0:00:06]} 3. Bb5 {[%emt 0:00:19]} e6 {[%emt 0:00:07]} 4. Bxc6 {[%emt 0:01:45]} bxc6 {[%emt 0:00:06]} 5. b3 {[%emt 0:00:10]} Ne7 {[%emt 0:03:24]} 6. Bb2 {[%emt 0:15:34]} d6 {[%emt 0:03:51]} 7. e5 {[%emt 0:01:49]} d5 {[%emt 0:00:45]} 8. d3 {[%emt 0:03:47][%cal Bd2d3,Bd3d4][%mdl 32] The position is equal.} Qb6 {[%emt 0:22:59]} (8... Qa5+ $11 9. Qd2 Qc7) 9. Nc3 {[%emt 0:05:07]} Ng6 {[%emt 0:11:44]} 10. O-O {[%emt 0:11:52]} c4 {[%emt 0:08:27]} 11. Na4 {[%emt 0:05:01]} Qc7 {[%emt 0:00:04]} 12. d4 {[%emt 0:05:00]} ({Much worse is} 12. bxc4 Ba6 $11) 12... Ba6 {[%emt 0:02:37]} 13. Re1 {[%emt 0:02:10]} c5 {[%emt 0:06:13] [#]} ({Black should play} 13... h6 $14) 14. Nxc5 $1 $16 {[%emt 0:07:55]} Bxc5 {[%emt 0:00:07]} 15. dxc5 {[%emt 0:00:06]} Qxc5 {[%emt 0:00:21]} 16. a4 {[%emt 0:00:51]} d4 {[%emt 0:27:38]} 17. Ba3 $18 {[%emt 0:10:43]} ({Much less strong is} 17. Bxd4 $6 Qa5 $16) ({Don't play} 17. Qxd4 Qxd4 18. Nxd4 cxb3) 17... Qd5 {[%emt 0:04:28]} 18. Qxd4 {[%emt 0:01:36]} Qxd4 {[%emt 0:01:57]} 19. Nxd4 {[%emt 0:00:04][%cal Bf3d4,Bd4b3,Bb3c5][%mdl 32]} cxb3 {[%emt 0:00:16]} 20. Nxb3 {[%emt 0:01:21]} O-O-O $2 {[%emt 0:04:41] [#]} (20... h5 {is tougher.} 21. h3 h4) 21. Bd6 {[%emt 0:03:23] White is clearly winning.} f6 {[%emt 0:00:18]} 22. Nc5 {[%emt 0:01:01][%csl LRa6,LRe6]} fxe5 {[%emt 0:00:06]} 23. Red1 {[%emt 0:00:23] Weighted Error Value: White=0.07 (flawless) /Black=0.38.  Mistake:       	---       	Black=4      Inaccurate:     	---       	Black=1      OK:         	White=3     	Black=5      Best:        	White=4     	Black=1      Strong:       	White=1     	---} 1-0

[Event "45th FIDE Olympiad 2024"]
[Site "Budapest"]
[Date "2024.09.18"]
[Round "7.6"]
[White "Chipanga, Chiletso"]
[Black "Righi, Ezio"]
[Result "1-0"]
[WhiteElo "2089"]
[BlackElo "1909"]
[PlyCount "57"]
[EventDate "2024.09.05"]
[EventType "team-tourn"]
[EventCountry "HUN"]
[WhiteTeam "Malawi"]
[BlackTeam "San Marino"]
[WhiteTeamCountry "MWI"]
[BlackTeamCountry "SMR"]
[TimeControl "40/5400+30:1800+30"]

1. e4 c5 2. Nf3 e6 3. d4 cxd4 4. Nxd4 a6 5. c4 Nf6 6. Nc3 Bb4 7. Bd3 Nc6 8. Nxc6 bxc6 9. O-O d6 10. Ne2 Qc7 11. Ng3 O-O 12. Bg5 Nd7 13. Qh5 g6 14. Qh4 f6 15. Bh6 Rf7 16. f4 Bc5+ 17. Kh1 Rb8 18. Rab1 Bd4 19. b4 c5 20. Ne2 Be3 21. Qh3 Bd2 22. f5 Bxh6 23. fxe6 Ne5 24. exf7+ Nxf7 25. Qg3 Ne5 26. Nc3 Bg7 27. Nd5 Qf7 28. bxc5 Rxb1 29. Rxb1 1-0

[Event "45th FIDE Olympiad 2024"]
[Site "Budapest"]
[Date "2024.09.18"]
[Round "7.7"]
[White "Kazakouski, Valery"]
[Black "Berkes, Ferenc"]
[Result "1/2-1/2"]
[ECO "A11"]
[WhiteElo "2577"]
[BlackElo "2605"]
[Annotator "TA"]
[PlyCount "137"]
[EventDate "2024.09.05"]
[EventType "team-tourn"]
[EventCountry "HUN"]
[SourceTitle "playchess.com"]
[Source "ChessBase"]
[SourceQuality "1"]
[WhiteTeam "Lithuania"]
[BlackTeam "Hungary"]
[WhiteTeamCountry "LTU"]
[BlackTeamCountry "HUN"]
[TimeControl "40/5400+30:1800+30"]

{[%evp 72,137,-252,-233,-194,-465,-470,-495,-497,-521,-508,-593,-471,-525,-406,-528,-406,-404,-308,-305,-236,-243,17,17,17,17,17,17,17,17,17,17,17,16,16,16,19,20,24,24,24,12,87,87,87,87,87,41,87,41,41,28,87,87,87,87,87,87,87,87,87,87,87,87,87,87,87,87]} 1. c4 {[%emt 0:00:09]} c6 {[%emt 0:00:11]} 2. Nf3 {[%emt 0:00:54]} d5 {[%emt 0:00:08]} 3. g3 {[%emt 0:00:54]} g6 {[%emt 0:03:37]} 4. Qa4 {[%emt 0:00:28]} e6 {[%emt 0:13:10]} 5. Bg2 {[%emt 0:08:24]} Bg7 {[%emt 0:00:14]} 6. O-O {[%emt 0:00:47] A11: English Opening: 1...c6.} Nf6 {[%emt 0:00:16]} 7. d3 {[%emt 0:06:40]} O-O {[%emt 0:00:10]} 8. Qc2 {[%emt 0:02:20]} Re8 {[%emt 0:04:03]} 9. Bf4 {[%emt 0:05:36]} Nbd7 {[%emt 0:02:36]} 10. cxd5 {[%emt 0:00:15]} exd5 {[%emt 0:02:30]} 11. Nc3 {[%emt 0:00:21]} Nc5 {[%emt 0:05:12]} 12. b4 $146 {[%emt 0:04:43]} ({Predecessor:} 12. Be5 Bg4 13. Rfe1 Bxf3 14. Bxf6 Qxf6 15. Bxf3 Ne6 16. Bg2 h5 17. Qa4 a5 18. Rac1 {0-1 Valdes Romero,L (2391)-Van Wely,L (2686) San Sebastian KO GpB 2011 (5)}) 12... Ne6 {[%emt 0:00:12]} 13. Be5 {[%emt 0:01:11]} Bf8 {[%emt 0:04:37]} 14. Rab1 {[%emt 0:17:11]} Ng4 {[%emt 0:05:31]} 15. e3 {[%emt 0:09:04]} Nxe5 {[%emt 0:16:30]} 16. Nxe5 {[%emt 0:00:08]} d4 {[%emt 0:00:22]} 17. Ne4 {[%emt 0:11:14]} Nc7 {[%emt 0:03:31]} 18. Nc4 {[%emt 0:05:45]} Rb8 {[%emt 0:04:59]} 19. a3 {[%emt 0:07:19]} a6 {[%emt 0:01:14]} 20. Ned2 {[%emt 0:01:57]} dxe3 {[%emt 0:03:20]} 21. fxe3 {[%emt 0:00:26]} Nd5 {[%emt 0:00:09]} 22. e4 {[%emt 0:01:44]} Nb6 {[%emt 0:01:50]} 23. Na5 {[%emt 0:00:45]} Bg7 {[%emt 0:03:19]} 24. Ndb3 {[%emt 0:00:47]} Na4 {[%emt 0:03:45]} 25. Kh1 {[%emt 0:06:08]} Nc3 {[%emt 0:00:42]} 26. Rbe1 {[%emt 0:00:06]} Nb5 {[%emt 0:00:16]} 27. Qf2 {[%emt 0:03:01]} Re7 {[%emt 0:01:51]} 28. d4 {[%emt 0:02:01]} Nxa3 {[%emt 0:02:13]} 29. e5 {[%emt 0:01:50]} Be6 {[%emt 0:03:46]} 30. Nc5 {[%emt 0:00:44]} Bd5 {[%emt 0:00:55]} 31. Re3 {[%emt 0:01:10]} Nb5 {[%emt 0:00:25]} 32. Nab3 {[%emt 0:01:09]} Nxd4 {[%emt 0:01:20]} 33. Nxd4 {[%emt 0:01:15]} Bxg2+ {[%emt 0:00:07]} 34. Kxg2 {[%emt 0:00:29]} Qxd4 {[%emt 0:00:05]} 35. e6 {[%emt 0:00:23]} Qd5+ {[%emt 0:05:53]} 36. Kh3 {[%emt 0:00:01]} fxe6 {[%emt 0:02:10]} 37. Qe2 {[%emt 0:01:07]} Rbe8 {[%emt 0:00:58]} 38. Rff3 $2 {[%emt 0:00:26]} (38. Rd1 {was worth a try.} Qf5+ 39. Kg2) 38... a5 $19 {[%emt 0:01:02]} 39. Rd3 {[%emt 0:00:36]} Qh5+ {[%emt 0:00:32]} 40. Kg2 {[%emt 0:00:02]} axb4 {[%emt 0:00:13]} 41. Qc2 {[%emt 0:03:38]} Qe5 {[%emt 0:04:22]} 42. Qc4 {[%emt 0:01:47]} Ra8 {[%emt 0:05:10]} 43. h4 {[%emt 0:02:35]} h6 {[%emt 0:04:32]} 44. Rd2 {[%emt 0:08:38]} b5 {[%emt 0:07:17]} 45. Qxb4 {[%emt 0:00:19]} Rf8 {[%emt 0:00:33]} 46. Nd3 {[%emt 0:01:45] [#]} c5 $2 {[%emt 0:02:54]} ({Better is} 46... Qc7 $1 $19 {Hoping for ...Rxf3.} 47. Nf4 (47. Rxf8+ Bxf8) 47... Ree8) 47. Nxe5 $11 {[%emt 0:01:53]} cxb4 {[%emt 0:00:09]} 48. Nxg6 {[%emt 0:00:09]} Rxf3 {[%emt 0:02:45]} 49. Nxe7+ {[%emt 0:00:05]} Kf7 {[%emt 0:00:05]} 50. Kxf3 {[%emt 0:00:07]} Kxe7 {[%emt 0:00:06]} 51. Rd3 {[%emt 0:02:25]} Bc3 {[%emt 0:00:11]} 52. Ke4 {[%emt 0:00:41]} Be1 {[%emt 0:00:59]} 53. Re3 {[%emt 0:02:58]} Bd2 {[%emt 0:00:26]} 54. Rf3 {[%emt 0:00:17]} (54. Re2 $5 Bc3 $8 55. Kd3 $14) 54... Bc3 {[%emt 0:00:37]} 55. g4 {[%emt 0:04:54]} Bf6 {[%emt 0:00:47]} 56. Rh3 {[%emt 0:00:11]} b3 {[%emt 0:03:30]} (56... Kd6 $11) 57. Rxb3 $16 {[%emt 0:00:15]} Bxh4 {[%emt 0:00:06]} 58. Rxb5 {[%emt 0:00:05]} Kf6 {[%emt 0:00:04]} 59. Rb8 {[%emt 0:00:23]} (59. Kf3 $16) 59... Bg3 {[%emt 0:00:25] [#]} (59... Kg5 $14) 60. Rf8+ {[%emt 0:00:56]} (60. Rb3 $1 $16 {[%cal Rb3g3]} Bh4 61. Rb2) 60... Kg6 $14 {[%emt 0:00:19]} 61. Rf3 {[%emt 0:00:40]} Bc7 {[%emt 0:00:52] [#]} (61... Bh4 $11) 62. Rh3 $1 $16 {[%emt 0:00:18]} Kg5 {[%emt 0:00:57]} 63. Kf3 {[%emt 0:00:14]} Bd6 {[%emt 0:01:21]} 64. Rh5+ {[%emt 0:00:07]} Kg6 {[%emt 0:00:06]} 65. Ke4 {[%emt 0:00:05]} Bg3 {[%emt 0:00:14]} 66. Kd4 {[%emt 0:00:07]} Bd6 {[%emt 0:00:49]} 67. Kc4 {[%emt 0:01:03]} Bf4 {[%emt 0:01:00]} 68. Kc5 {[%emt 0:01:12]} Kf6 {[%emt 0:00:25]} 69. Kd4 {[%emt 0:00:24]} 1/2-1/2

[Event "45th FIDE Olympiad 2024"]
[Site "Budapest"]
[Date "2024.09.18"]
[Round "7.7"]
[White "Volpinari, Danilo"]
[Black "Kamwendo, Precious"]
[Result "1-0"]
[WhiteElo "1939"]
[BlackElo "2001"]
[PlyCount "105"]
[EventDate "2024.09.05"]
[EventType "team-tourn"]
[EventCountry "HUN"]
[WhiteTeam "San Marino"]
[BlackTeam "Malawi"]
[WhiteTeamCountry "SMR"]
[BlackTeamCountry "MWI"]
[TimeControl "40/5400+30:1800+30"]

1. e4 e5 2. Nf3 Nf6 3. Nxe5 d6 4. Nf3 Nxe4 5. Nc3 Nxc3 6. dxc3 Be7 7. Be3 O-O 8. Qd2 Nc6 9. O-O-O Be6 10. Kb1 Ne5 11. Nd4 Nc4 12. Qe2 Nxe3 13. Qxe3 Bd7 14. Bd3 g6 15. h4 Kg7 16. h5 Rh8 17. Rh2 Bf6 18. h6+ Kf8 19. Re1 a5 20. Rhh1 a4 21. a3 Ra5 22. f4 c5 23. Nf3 Be6 24. Ng5 Bxg5 25. fxg5 b5 26. Rhf1 Kg8 27. Rf6 Qe7 28. Qf2 Qe8 29. Be4 Ra7 30. Bd5 Re7 31. Bxe6 Rxe6 32. Rfxe6 fxe6 33. Qf6 Qf7 34. Rxe6 Qxf6 35. Rxf6 d5 36. Kc1 d4 37. Kd2 dxc3+ 38. Kxc3 b4+ 39. Kd3 bxa3 40. bxa3 c4+ 41. Kd4 c3 42. Ra6 Kf7 43. Rxa4 Rd8+ 44. Kxc3 Rd5 45. Ra7+ Ke6 46. Rxh7 Rxg5 47. Rb7 Rxg2 48. a4 Rh2 49. h7 Kd6 50. a5 Kc6 51. a6 Rh3+ 52. Kb4 g5 53. Rg7 1-0

[Event "45th FIDE Olympiad 2024"]
[Site "Budapest"]
[Date "2024.09.18"]
[Round "7.8"]
[White "Gledura, Benjamin"]
[Black "Laurusas, Tomas"]
[Result "1/2-1/2"]
[ECO "D31"]
[WhiteElo "2628"]
[BlackElo "2569"]
[Annotator "TA"]
[PlyCount "139"]
[EventDate "2024.09.05"]
[EventType "team-tourn"]
[EventCountry "HUN"]
[SourceTitle "playchess.com"]
[Source "ChessBase"]
[SourceQuality "1"]
[WhiteTeam "Hungary"]
[BlackTeam "Lithuania"]
[WhiteTeamCountry "HUN"]
[BlackTeamCountry "LTU"]
[TimeControl "40/5400+30:1800+30"]

{[%evp 74,139,0,0,0,-502,-514,-582,83,95,145,145,145,122,145,87,138,137,151,141,192,202,224,216,218,214,264,257,240,178,225,225,215,215,244,251,273,252,352,328,359,324,347,345,374,376,376,352,393,377,396,330,396,373,379,379,342,280,172,0,0,0,0,0,0,0,102,0]} 1. c4 {[%emt 0:00:05]} c6 {[%emt 0:00:12]} 2. d4 {[%emt 0:00:12]} d5 {[%emt 0:00:29]} 3. Nf3 {[%emt 0:00:16]} Nf6 {[%emt 0:00:27]} 4. Nc3 {[%emt 0:01:23]} dxc4 {[%emt 0:05:29]} 5. a4 {[%emt 0:00:19]} e6 {[%emt 0:01:12]} 6. e4 {[%emt 0:09:23]} Bb4 {[%emt 0:01:54]} 7. Bxc4 {[%emt 0:00:23]} Nxe4 {[%emt 0:01:13]} 8. O-O {[%emt 0:00:11]} Nf6 {[%emt 0:09:01]} 9. Qe2 {[%emt 0:02:34]} Nbd7 {[%emt 0:04:55]} 10. Rd1 {[%emt 0:06:05]} Nb6 {[%emt 0:01:43]} 11. Bb3 {[%emt 0:03:11]} Nbd5 {[%emt 0:00:26]} 12. Nxd5 {[%emt 0:13:53]} Nxd5 {[%emt 0:03:01]} 13. Ne5 {[%emt 0:01:32]} O-O {[%emt 0:05:50]} 14. Bc2 {[%emt 0:02:48]} f5 {[%emt 0:20:09]} 15. Rd3 {[%emt 0:01:31]} Bd7 {[%emt 0:04:37]} 16. Rg3 {[%emt 0:10:18]} Be7 {[%emt 0:02:11]} 17. Bd2 {[%emt 0:06:24]} Bf6 {[%emt 0:05:17]} 18. Re1 {[%emt 0:00:40]} Rc8 {[%emt 0:03:19]} 19. Bb3 {[%emt 0:09:27]} Rc7 {[%emt 0:09:25]} 20. a5 {[%emt 0:09:29]} Bc8 {[%emt 0:02:04]} 21. Rh3 {[%emt 0:02:45]} Re8 {[%emt 0:03:44]} 22. Qh5 {[%emt 0:03:17]} g6 {[%emt 0:00:11]} 23. Qh6 {[%emt 0:00:58]} Rg7 {[%emt 0:04:03]} 24. Rg3 {[%emt 0:02:19]} Rf8 {[%emt 0:02:46]} 25. Nf3 {[%emt 0:02:27]} f4 {[%emt 0:01:44]} 26. Rh3 {[%emt 0:01:29]} Be7 {[%emt 0:00:27]} 27. Re5 {[%emt 0:00:44]} Bf6 {[%emt 0:03:00]} 28. Ng5 {[%emt 0:02:29]} Bxe5 {[%emt 0:02:56]} 29. dxe5 {[%emt 0:00:03]} Rf5 {[%emt 0:01:51]} 30. Nxh7 {[%emt 0:00:36]} Rxe5 {[%emt 0:00:01]} 31. Bc2 {[%emt 0:03:23]} Rh5 {[%emt 0:01:19]} 32. Rxh5 {[%emt 0:00:07]} gxh5 {[%emt 0:00:02]} 33. Bg6 {[%emt 0:05:16]} Qe7 {[%emt 0:01:20]} 34. Qxh5 {[%emt 0:00:54]} c5 {[%emt 0:00:40]} 35. h4 {[%emt 0:00:26]} Bd7 {[%emt 0:00:29]} 36. Ng5 {[%emt 0:00:35]} Qf6 {[%emt 0:00:25]} 37. Bh7+ {[%emt 0:00:22]} Kf8 {[%emt 0:00:02]} 38. Be4 {[%emt 0:00:08]} Ke7 {[%emt 0:00:47]} 39. Nxe6 $2 {[%emt 0:01:02][%mdl 8192]} (39. Qe2 $11 {and White is okay.} Qe5 40. Nf3) 39... Bxe6 $19 {[%emt 0:00:30]} 40. Bxd5 {[%emt 0:00:06]} Bxd5 $2 {[%emt 0:00:46]} (40... Bg4 $1 $19 {[%cal Rg4h5]} 41. Qh8 Bf3 (41... Qxb2 42. Bxf4 Qb1+ 43. Kh2 $14) 42. Qxg7+ Qxg7 43. Bxf3 Qxb2 44. Bxf4 c4) 41. Qxd5 $16 {[%emt 0:30:13]} Qxb2 {[%emt 0:12:21]} ({Better is} 41... Rf7) 42. Qxc5+ $16 {[%emt 0:00:00]} (42. Bxf4 Qa1+ 43. Kh2 Qd4 44. Qxb7+ Ke6 45. Qc6+ Kf5 $16) 42... Kf7 {[%emt 0:02:53]} 43. Qc4+ {[%emt 0:00:00]} (43. Bxf4 Qb1+ 44. Kh2 Qe4 $16) 43... Ke8 {[%emt 0:03:36]} 44. Qxf4 {[%emt 0:00:00]} ({But not} 44. Bxf4 $6 Qa1+ 45. Kh2 Qxa5 $11) (44. Qc8+ $142 Ke7 45. Qc7+ (45. Bxf4 Qb1+ 46. Kh2 Qe4 $16) 45... Ke8 46. Qc8+ (46. Qxf4 Re7 $16) 46... Ke7 47. Bxf4) 44... Qb5 {[%emt 0:01:50]} (44... Re7 $142) 45. Qb8+ $16 {[%emt 0:00:00]} Kd7 {[%emt 0:00:07]} 46. Bf4 {[%emt 0:00:00]} Qc6 {[%emt 0:03:10] [#]} (46... Rg6 $16 {was called for.} 47. Bg5 (47. Qxa7 Qd5 $16) 47... Qxa5) 47. Bg5 $1 $18 {[%emt 0:00:00]} (47. Qxa7 $2 Qxg2#) 47... Rf7 {[%emt 0:03:59]} 48. Qxa7 {[%emt 0:00:00]} Rf5 {[%emt 0:00:02]} 49. Qe3 {[%emt 0:00:00]} Qd5 {[%emt 0:00:36]} 50. Qe7+ {[%emt 0:00:00]} Kc6 {[%emt 0:00:01]} 51. Be3 {[%emt 0:00:00]} Qd1+ {[%emt 0:01:21]} (51... Re5 {was worth a try.} 52. Qf6+ Kb5) 52. Kh2 $18 {[%emt 0:00:00]} Rxa5 {[%emt 0:00:02]} 53. Bf4 {[%emt 0:00:00]} Qd5 {[%emt 0:02:01]} 54. Qe8+ {[%emt 0:00:00]} Kb6 {[%emt 0:01:18]} 55. Qg6+ {[%emt 0:02:31]} Kb5 {[%emt 0:01:56]} 56. h5 {[%emt 0:00:31]} Ra4 {[%emt 0:01:24]} 57. Qe8+ {[%emt 0:01:46]} Ka5 {[%emt 0:01:14]} 58. Bc7+ {[%emt 0:00:37]} Kb4 {[%emt 0:00:01]} 59. h6 {[%emt 0:00:34]} Ra6 {[%emt 0:00:39]} 60. Qe7+ {[%emt 0:01:38]} Kb3 {[%emt 0:00:53]} 61. Qh4 {[%emt 0:00:38]} ({Not} 61. Qe3+ Kc4 $16) 61... Qf7 {[%emt 0:00:42]} 62. Qh3+ {[%emt 0:01:14]} Ka2 {[%emt 0:00:36]} 63. Be5 {[%emt 0:00:23]} Qh7 {[%emt 0:00:19]} 64. Bg7 {[%emt 0:00:24]} Rg6 {[%emt 0:00:49]} 65. Qh4 {[%emt 0:02:12]} b5 {[%emt 0:00:15]} ({Wrong is} 65... Rxg7 $2 66. Qa4+ Kb2 67. Qd4+ Kc2 68. Qxg7 $18) 66. g3 $2 {[%emt 0:00:45]} (66. Bf8 $18 Qb7 67. g3) 66... Rxg7 $1 $11 {[%emt 0:00:27]} 67. hxg7 {[%emt 0:00:06]} Qxg7 {[%emt 0:00:03]} 68. Qb4 {[%emt 0:00:08]} Qe5 {[%emt 0:00:31]} 69. Kg1 {[%emt 0:01:08]} Qd5 {[%emt 0:00:25] [#]} (69... Qe2 $1 $11) 70. Kh2 {[%emt 0:00:27]} ({Only move:} 70. f4 $1 $16) 1/2-1/2

[Event "45th FIDE Olympiad 2024"]
[Site "Budapest"]
[Date "2024.09.18"]
[Round "7.8"]
[White "Mwale, George"]
[Black "Piva, Michele"]
[Result "1-0"]
[WhiteElo "2056"]
[BlackElo "1721"]
[PlyCount "77"]
[EventDate "2024.09.05"]
[EventType "team-tourn"]
[EventCountry "HUN"]
[WhiteTeam "Malawi"]
[BlackTeam "San Marino"]
[WhiteTeamCountry "MWI"]
[BlackTeamCountry "SMR"]
[TimeControl "40/5400+30:1800+30"]

1. Nf3 d5 2. d4 Nf6 3. g3 Bf5 4. Bg2 e6 5. O-O Be7 6. c4 O-O 7. Nc3 c6 8. cxd5 cxd5 9. Qb3 b6 10. Bf4 Nc6 11. Rac1 Na5 12. Qd1 a6 13. Na4 Ne4 14. Bc7 Qd7 15. Nxb6 Qb5 16. Nxa8 Rxa8 17. Bxa5 Qxa5 18. Qb3 Bb4 19. a3 Nd2 20. axb4 Nxb3 21. bxa5 Nxc1 22. Rxc1 f6 23. Nh4 Bg4 24. f3 Bh5 25. Bh3 Bf7 26. Rc6 f5 27. Bf1 g5 28. Ng2 Kg7 29. e3 Kf6 30. Rxa6 Rc8 31. Rb6 Be8 32. a6 Ra8 33. b4 h5 34. b5 Ke7 35. Rb7+ Kd8 36. b6 Bd7 37. a7 Kc8 38. Ba6 g4 39. Rb8# 1-0

[Event "45th FIDE Olympiad 2024"]
[Site "Budapest"]
[Date "2024.09.18"]
[Round "7.9"]
[White "Maghsoodloo, Parham"]
[Black "Le, Quang Liem"]
[Result "1/2-1/2"]
[ECO "C65"]
[WhiteElo "2723"]
[BlackElo "2741"]
[Annotator "TA"]
[PlyCount "83"]
[EventDate "2024.09.05"]
[EventType "team-tourn"]
[EventCountry "HUN"]
[SourceTitle "playchess.com"]
[Source "ChessBase"]
[SourceQuality "1"]
[WhiteTeam "Iran"]
[BlackTeam "Vietnam"]
[WhiteTeamCountry "IRI"]
[BlackTeamCountry "VIE"]
[TimeControl "40/5400+30:1800+30"]

{[%evp 9,83,16,21,6,16,14,12,0,11,0,0,-10,-7,0,0,-8,0,0,0,0,6,0,-10,0,0,-6,0,0,0,0,0,0,0,0,20,0,0,0,0,0,0,0,0,0,0,0,0,0,20,20,8,0,0,0,0,0,0,0,8,0,8,8,8,15,15,15,11,36,57,0,0,0,0,0,0,0]} 1. e4 {[%emt 0:00:04]} e5 {[%emt 0:00:09]} 2. Nf3 {[%emt 0:00:07]} Nc6 {[%emt 0:00:08]} 3. Bb5 {[%emt 0:00:07]} Nf6 {[%emt 0:00:10]} 4. d3 {[%emt 0:00:15]} Bc5 {[%emt 0:00:09]} 5. Bxc6 {[%emt 0:00:15]} dxc6 {[%emt 0:00:09]} 6. Nbd2 {[%emt 0:00:12][%cal Od2c4]} (6. Nxe5 $2 {is the wrong capture.} Qd4 7. Qe2 Qxe5 $19) 6... Nd7 {[%emt 0:01:05]} 7. O-O {[%emt 0:00:22]} O-O {[%emt 0:03:52]} 8. Nc4 {[%emt 0:00:32]} Re8 {[%emt 0:00:15]} 9. a4 {[%emt 0:00:35]} a5 {[%emt 0:01:29]} 10. Kh1 {[%emt 0:02:21]} b6 {[%emt 0:03:06][%cal Bb7b6,Bb6b5][%mdl 32]} 11. Be3 {[%emt 0:04:26]} Bb4 {[%emt 0:06:03]} 12. Rg1 {[%emt 0:21:24]} b5 {[%emt 0:05:56]} 13. Na3 {[%emt 0:05:49]} Ba6 {[%emt 0:04:18]} 14. Nb1 {[%emt 0:01:06]} Bb7 {[%emt 0:00:20]} 15. Nfd2 {[%emt 0:14:30]} Nb6 {[%emt 0:05:05][%cal Bd7b6,Bb6c8,Bc8e7,Be7g6,Bg6f4][%mdl 32]} 16. b3 {[%emt 0:00:04]} Qd7 {[%emt 0:02:37]} 17. Qe2 {[%emt 0:04:32]} Nc8 {[%emt 0:15:17]} 18. f3 {[%emt 0:02:55]} Ne7 {[%emt 0:01:55]} 19. Qf2 {[%emt 0:00:58]} Ng6 {[%emt 0:00:14]} 20. Nf1 {[%emt 0:01:08]} Nf4 {[%emt 0:04:23]} 21. Ng3 {[%emt 0:06:11]} g6 {[%emt 0:00:49]} 22. d4 {[%emt 0:01:46] dxe5 would now be deadly.} Bd6 {[%emt 0:02:46]} 23. Nc3 {[%emt 0:05:03]} b4 {[%emt 0:06:13]} 24. dxe5 {[%emt 0:00:20]} Bxe5 {[%emt 0:00:09]} 25. Rad1 {[%emt 0:00:04]} Qe7 {[%emt 0:00:40]} 26. Nce2 {[%emt 0:01:27]} Nxe2 {[%emt 0:00:14]} 27. Nxe2 {[%emt 0:00:07]} Rad8 {[%emt 0:00:32]} 28. Bc5 {[%emt 0:05:30]} Bd6 {[%emt 0:04:27]} 29. Bxd6 {[%emt 0:00:10]} cxd6 {[%emt 0:00:09]} 30. Qb6 {[%emt 0:00:04]} d5 {[%emt 0:01:39]} 31. Ng3 {[%emt 0:10:06]} h5 {[%emt 0:17:11]} 32. exd5 $1 {[%emt 0:01:46]} (32. Qxa5 $2 {loses.} h4 33. Nf5 gxf5 34. exd5 Rxd5 (34... cxd5 $2 35. Qb5 $19) 35. Rxd5 cxd5 $19) 32... cxd5 {[%emt 0:00:07]} 33. h3 {[%emt 0:00:22]} ({Reject} 33. Qxa5 h4 34. Nf1 h3 $17) 33... Rc8 {[%emt 0:02:37]} 34. Rge1 {[%emt 0:03:26]} Qxe1+ {[%emt 0:03:48]} 35. Rxe1 {[%emt 0:00:03]} Rxe1+ {[%emt 0:00:09]} 36. Kh2 {[%emt 0:00:04]} h4 {[%emt 0:00:43]} (36... Rxc2 {seems wilder.} 37. Qxb7 h4 38. Qa8+ Kg7) 37. Qxb7 {[%emt 0:02:46]} hxg3+ {[%emt 0:00:31]} 38. Kxg3 {[%emt 0:00:04]} Rxc2 {[%emt 0:00:12]} 39. Qxd5 {[%emt 0:00:11]} (39. Qa8+ $1 $14 Kg7 40. Qxa5) 39... Rb1 $11 {[%emt 0:04:20] The position is equal.} 40. Qd8+ {[%emt 0:05:31]} Kg7 {[%emt 0:00:11]} 41. Qd4+ {[%emt 0:30:45]} Kg8 {[%emt 0:30:18]} 42. Qd8+ {[%emt 0:00:13] Weighted Error Value: White=0.05 (flawless) /Black=0.04 (flawless) .  Mistake:       	White=1     	---        OK:         	White=17    	Black=18     Best:        	White=1     	Black=2      Strong:       	White=1     	---} 1/2-1/2

[Event "45th FIDE Olympiad 2024"]
[Site "Budapest"]
[Date "2024.09.18"]
[Round "7.9"]
[White "Van Bemmelen, Ursus"]
[Black "Asante, Debesai Zerabruk"]
[Result "0-1"]
[WhiteElo "2146"]
[BlackElo "1908"]
[PlyCount "112"]
[EventDate "2024.09.05"]
[EventType "team-tourn"]
[EventCountry "HUN"]
[WhiteTeam "Netherlands Antilles"]
[BlackTeam "Eritrea"]
[WhiteTeamCountry "AHO"]
[BlackTeamCountry "ERI"]
[TimeControl "40/5400+30:1800+30"]

1. c4 Nf6 2. Nc3 g6 3. g3 Bg7 4. Bg2 O-O 5. e4 d6 6. Nge2 c5 7. d3 Nc6 8. O-O Bg4 9. h3 Bxe2 10. Nxe2 Ne8 11. Rb1 Nc7 12. Kh2 Ne6 13. f4 Ned4 14. Nc3 f5 15. Be3 Rb8 16. Qd2 a6 17. Rbe1 Qd7 18. Bf2 Kh8 19. b3 b5 20. exf5 gxf5 21. Nd5 Rfe8 22. Qd1 e6 23. Ne3 Bh6 24. Qh5 Qg7 25. Bg1 Qg6 26. Qxg6 hxg6 27. g4 Kg8 28. Bxc6 Nxc6 29. Nc2 Bg7 30. Re2 Kf7 31. Kg3 Bf6 32. Be3 Re7 33. Kg2 Rbe8 34. Ref2 Rd7 35. Rh1 Bh4 36. Rff1 Rde7 37. Bf2 Bf6 38. Be3 e5 39. gxf5 gxf5 40. fxe5 Rxe5 41. Rf3 Nb4 42. Nxb4 cxb4 43. Bf4 Re2+ 44. Rf2 Bd4 45. Rxe2 Rxe2+ 46. Kf3 Rf2+ 47. Kg3 Rxa2 48. cxb5 axb5 49. Bxd6 Rb2 50. Kf4 Ke6 51. Bxb4 Be5+ 52. Ke3 f4+ 53. Ke4 Re2+ 54. Kf3 Re3+ 55. Kg4 Rg3+ 56. Kh4 Rg8 {0-} 0-1